bitfinex/quotes_ETHUSD_20250625
["timestamp","ask_amount","ask_price","bid_price","bid_amount"]
[1750851383189,0.4076107,2428.7,2428.6,11.78572463]
[1750851383809,0.4076107,2428.7,2428.6,13.5266]
[1750851384426,0.4076107,2428.7,2428.6,17.5266]
[1750851384920,0.19,2428.7,2428.6,15.5786]
[1750851385101,0.7549,2429.7,2428.8,1.3734]
[1750851385520,0.7549,2429.7,2428.9,10.0]
[1750851387320,0.798,2429.6,2428.9,10.0]
[1750851387626,0.798,2429.6,2428.6,0.7563]
[1750851388915,0.8186,2429.6,2428.3,10.0]
[1750851389099,0.8186,2429.4,2428.3,10.0]
[1750851389695,0.8186,2429.4,2428.4,4.0]
[1750851390430,0.8016,2429.2,2428.5,10.0]
[1750851390588,10.0,2429.1,2427.8,0.7742]
[1750851390925,0.7515,2428.5,2427.3,0.8261]
[1750851391088,0.7515,2428.3,2427.1,0.8261]
[1750851391287,0.7515,2428.3,2426.6,0.8261]
[1750851391288,10.0,2428.2,2426.6,0.8261]
[1750851391489,0.8039,2427.9,2426.6,1.14131885]
[1750851391693,5.80493604,2428.0,2426.6,1.14131885]
[1750851391694,0.8039,2427.7,2426.6,1.14131885]
[1750851391926,0.8039,2427.7,2426.7,0.30893188]
[1750851395004,0.2056,2427.5,2427.1,0.2056]
[1750851396328,0.7795,2427.4,2427.1,0.2056]
[1750851396505,0.2056,2427.3,2426.8,0.2056]
[1750851396713,0.8225,2427.2,2426.8,0.2056]
[1750851397096,0.8225,2427.2,2426.4,0.10290563]
[1750851397296,0.2056,2427.1,2426.6,0.2056]
[1750851397930,0.8225,2427.2,2426.4,0.65290563]
[1750851398233,2.7705,2427.2,2426.8,0.2056]
[1750851400010,0.8225,2427.2,2426.8,0.2056]
[1750851403302,0.8225,2427.2,2426.5,0.55]
[1750851403504,0.8225,2427.2,2427.0,0.2056]
[1750851404742,0.7581,2427.4,2426.7,0.7519]
[1750851405039,0.7581,2427.4,2427.1,0.2056]
[1750851405203,0.7622,2427.6,2426.8,0.55]
[1750851405400,0.7622,2427.6,2427.3,0.2056]
[1750851408522,1.18638341,2427.6,2427.3,0.2056]
[1750851409121,0.7622,2427.6,2427.3,0.2056]
[1750851414447,2.8936,2427.8,2427.3,0.2056]
[1750851414744,2.688,2427.8,2427.5,0.2056]
[1750851416154,0.777,2427.8,2427.5,0.2056]
[1750851423756,8.883,2427.9,2427.5,0.2056]
[1750851425761,6.942,2427.9,2427.6,0.7618]
[1750851426655,6.942,2427.9,2427.5,0.2056]
[1750851431768,7.92485,2427.9,2427.5,0.2056]
[1750851432763,6.942,2427.9,2427.5,0.2056]
[1750851432941,0.2056,2428.0,2427.5,0.2056]
[1750851433246,6.925,2427.8,2427.5,0.2056]
[1750851433565,6.921,2427.8,2427.5,0.2056]
[1750851435061,2.1166,2428.0,2427.5,0.2056]
[1750851435260,9.874,2428.4,2427.1,5.81246333]
[1750851435261,10.0796,2428.4,2427.7,0.2056]
[1750851435461,8.774,2428.3,2427.6,0.8319]
[1750851435659,0.2056,2428.0,2427.5,0.2056]
[1750851439870,0.2056,2428.0,2427.6,0.777]
[1750851440052,6.911,2428.2,2427.6,0.777]
[1750851440259,1.6937,2428.1,2427.7,0.2056]
[1750851444384,1.4881,2428.1,2427.4,0.8082]
[1750851444556,0.2056,2428.0,2427.5,0.2056]
[1750851447878,6.911,2428.2,2427.6,0.8006]
[1750851448062,7.1166,2428.2,2427.7,0.2056]
[1750851448774,6.911,2428.2,2427.6,0.8006]
[1750851448981,6.911,2428.2,2427.8,0.2056]
[1750851452076,0.2056,2428.3,2427.8,0.2056]
[1750851452378,6.894,2428.1,2427.8,0.2056]
[1750851452573,7.0996,2428.3,2427.9,0.8217]
[1750851455686,7.0996,2428.3,2427.4,10.42950856]
[1750851455687,7.68578,2428.3,2427.7,0.8116]
[1750851455889,0.2056,2428.1,2427.7,1.0172]
[1750851457763,7.68578,2428.3,2427.5,0.7849]
[1750851457963,0.2056,2427.9,2427.5,0.9905]
[1750851459188,1.859,2428.2,2427.5,0.7849]
[1750851459497,0.2056,2428.1,2427.7,0.2056]
[1750851465305,7.0986,2428.1,2427.7,0.2056]
[1750851467312,0.2056,2428.1,2427.7,0.2056]
[1750851471414,1.1948,2429.0,2427.8,0.8182]
[1750851471590,0.2056,2428.5,2428.1,0.2056]
[1750851471790,0.8248,2428.4,2427.8,0.8182]
[1750851471989,0.2056,2428.3,2427.8,1.0238]
[1750851473323,0.757,2428.6,2427.8,0.8182]
[1750851473492,0.2056,2428.5,2428.0,0.2056]
[1750851473903,10.0,2428.8,2427.8,0.7975]
[1750851474104,10.0,2428.8,2428.3,0.7975]
[1750851474302,17.0966,2428.8,2428.4,0.2056]
[1750851475120,10.2056,2428.8,2428.4,0.2056]
[1750851475422,0.2056,2428.8,2428.4,0.2056]
[1750851478422,0.7703,2428.7,2428.1,0.7618]
[1750851478621,0.9759,2428.7,2428.2,0.2056]
[1750851480323,0.7703,2428.7,2428.1,0.7618]
[1750851480509,0.2056,2428.4,2428.1,0.7618]
[1750851482225,0.2056,2428.4,2428.0,0.2056]
[1750851482428,0.7703,2428.7,2427.9,0.7546]
[1750851482725,15.81246333,2428.8,2427.7,2.5976]
[1750851482726,0.8087,2428.3,2427.7,2.5976]
[1750851482939,0.2056,2428.1,2427.7,0.9602]
[1750851486146,0.8028,2428.0,2427.3,0.7633]
[1750851486436,0.2056,2427.7,2427.2,0.2056]
[1750851486641,0.8028,2428.0,2427.2,0.2056]
[1750851486956,0.2056,2427.6,2427.2,0.2056]
[1750851489718,10.7856,2427.5,2426.6,0.7619]
[1750851490103,6.89,2427.4,2426.6,0.7619]
[1750851496045,10.0,2427.3,2426.6,0.7619]
[1750851496246,1.689,2427.2,2426.6,0.7619]
[1750851499753,0.2056,2426.9,2426.6,0.7619]
[1750851507553,7.6756,2427.5,2426.6,5.81246333]
[1750851507742,0.2056,2427.3,2426.9,0.75]
[1750851508521,6.889,2427.7,2427.0,0.75]
[1750851508725,0.2056,2427.5,2427.0,0.9556]
[1750851511140,0.7715,2427.5,2426.8,1.842]
[1750851511335,0.7715,2427.5,2426.7,0.8214]
[1750851511336,0.2056,2427.1,2426.7,1.027]
[1750851514262,0.2056,2427.1,2426.8,0.8049]
[1750851518469,0.2056,2427.3,2426.9,0.2056]
[1750851520070,0.2056,2427.3,2427.0,0.7555]
[1750851521145,0.2056,2427.8,2427.2,1.018]
[1750851521595,0.2056,2427.8,2427.2,0.8124]
[1750851521866,0.2056,2427.8,2427.4,0.2056]
[1750851524872,0.7979,2428.1,2427.2,2.6544]
[1750851525046,0.2056,2427.7,2427.2,2.86]
[1750851526183,0.2056,2427.7,2427.2,1.018]
[1750851526381,0.2056,2427.7,2427.2,2.856]
[1750851528373,0.2056,2427.7,2427.2,1.018]
[1750851528578,0.7502,2427.7,2427.0,1.838]
[1750851528879,0.2056,2427.2,2426.7,0.9723]
[1750851529671,0.2056,2427.2,2426.9,0.8]
[1750851530178,0.2056,2426.9,2426.7,0.7667]
[1750851537402,0.2056,2426.9,2426.5,0.9978]
[1750851537607,0.2056,2426.9,2426.5,1.28138]
[1750851538301,0.2056,2426.9,2426.5,0.9978]
[1750851546708,0.993,2426.9,2426.5,0.9978]
[1750851546908,0.993,2426.9,2426.5,0.2056]
[1750851549306,0.7874,2426.9,2426.1,10.7651]
[1750851549480,0.2056,2426.8,2426.3,0.2056]
[1750851550604,0.2056,2426.7,2426.2,0.2056]
[1750851551384,0.2056,2426.7,2426.2,0.48647]
[1750851551597,0.2056,2427.2,2426.6,0.9557]
[1750851551799,0.2056,2427.4,2426.6,2.0436]
[1750851551999,0.2056,2427.4,2427.0,0.2056]
[1750851552203,0.2056,2427.4,2427.1,0.7501]
[1750851554908,0.2056,2427.6,2427.1,0.7501]
[1750851556494,12.8428239,2427.9,2427.2,0.2056]
[1750851556695,0.2056,2427.7,2427.2,0.2056]
[1750851557992,0.2056,2427.7,2427.1,0.7501]
[1750851558313,0.2056,2427.8,2427.5,0.8095]
[1750851558514,6.876,2428.0,2427.6,0.2056]
[1750851559217,10.9819,2428.1,2427.6,0.2056]
[1750851559401,18.74567941,2428.1,2427.6,0.2056]
[1750851560420,17.76377941,2428.1,2427.2,0.8016]
[1750851560611,0.809,2427.6,2426.9,0.8016]
[1750851560797,0.809,2427.6,2427.1,0.2056]
[1750851560798,0.2056,2427.5,2427.1,0.2056]
[1750851561321,0.99456,2427.5,2427.1,0.2056]
[1750851561520,0.78896,2427.5,2426.7,0.7918]
[1750851561710,0.2056,2427.3,2427.0,0.7818]
[1750851561915,7.683,2427.6,2427.0,0.7818]
[1750851562116,7.8886,2427.6,2427.1,0.2056]
[1750851562622,1.0146,2427.6,2427.1,0.2056]
[1750851562830,0.2056,2427.6,2427.1,0.2056]
[1750851568719,7.6873,2427.8,2427.0,0.7818]
[1750851569029,0.2056,2427.7,2427.3,0.2056]
[1750851570235,0.2056,2427.7,2427.4,0.8239]
[1750851570939,0.2056,2427.7,2427.3,0.2056]
[1750851574343,6.87,2427.9,2427.2,0.8239]
[1750851574558,0.2056,2427.8,2427.4,0.2056]
[1750851575647,0.2056,2427.6,2427.2,0.2056]
[1750851576636,0.2056,2427.5,2427.0,0.9977]
[1750851577315,0.2056,2427.5,2427.0,1.28077]
[1750851577641,6.869,2427.5,2427.2,0.2056]
[1750851581433,0.8194,2427.4,2426.8,0.8237]
[1750851581647,0.2056,2427.3,2426.9,0.2056]
[1750851582438,0.2056,2427.1,2426.7,1.833]
[1750851582650,0.2056,2427.1,2426.6,0.2056]
[1750851582969,0.2056,2426.9,2426.4,1.8375]
[1750851583177,0.2056,2426.9,2426.4,1.0375]
[1750851584751,0.99217,2426.9,2426.4,0.2056]
[1750851585528,0.2056,2426.7,2426.2,2.7923]
[1750851585728,0.2056,2426.7,2426.2,0.9593]
[1750851588360,0.7638,2426.6,2426.2,0.9593]
[1750851592660,0.7638,2426.6,2426.2,0.2056]
[1750851592832,0.2056,2426.2,2425.9,0.10292556]
[1750851593026,0.2056,2426.2,2425.7,1.0351]
[1750851593257,0.2056,2426.2,2425.7,1.11581]
[1750851593434,0.2056,2426.5,2426.1,0.8034]
[1750851593755,0.2056,2426.8,2426.1,1.009]
[1750851593962,0.2056,2426.8,2426.3,0.2056]
[1750851594734,0.2056,2426.8,2426.4,0.7808]
[1750851600675,6.863,2427.1,2426.4,0.7808]
[1750851600843,17.0686,2427.1,2426.6,0.2056]
[1750851601043,1.968,2427.0,2426.6,0.2056]
[1750851602681,17.0686,2427.1,2426.6,0.2056]
[1750851602867,0.2056,2427.1,2426.7,0.7531]
[1750851603070,0.7519,2427.4,2426.7,0.7531]
[1750851603254,0.2056,2427.3,2426.8,0.2056]
[1750851603587,10.2056,2427.3,2426.8,0.2056]
[1750851603749,1.70676,2427.2,2426.8,0.2056]
[1750851605577,2.51316,2427.2,2426.6,0.7932]
[1750851605744,0.2056,2427.1,2426.7,0.2056]
[1750851605975,8.132876,2427.1,2426.6,0.7932]
[1750851606299,0.2056,2427.0,2426.6,0.7932]
[1750851610601,6.859,2427.1,2426.7,0.2056]
[1750851610775,0.2056,2427.2,2426.7,0.2056]
[1750851610977,6.859,2427.1,2426.7,0.2056]
[1750851615207,7.0636,2427.2,2426.7,0.2056]
[1750851615506,0.2056,2427.2,2426.8,0.7731]
[1750851615710,6.857,2427.4,2427.1,0.2056]
[1750851615906,7.74536,2427.4,2427.2,0.8191]
[1750851616106,6.857,2427.4,2427.2,0.8191]
[1750851616683,0.2056,2427.5,2427.2,0.8191]
[1750851616909,7.0626,2427.5,2427.2,0.8191]
[1750851617132,7.0616,2427.5,2427.2,0.8191]
[1750851617308,0.2056,2427.5,2427.2,0.8191]
[1750851617518,7.0616,2427.5,2427.2,0.8191]
[1750851620306,7.82018,2427.5,2426.7,0.8114]
[1750851620491,0.2056,2427.3,2426.9,0.2056]
[1750851621884,0.2056,2427.3,2427.0,0.7631]
[1750851622713,0.2056,2427.3,2426.9,0.2056]
[1750851623410,0.9581,2427.3,2426.9,0.2056]
[1750851623715,1.73931,2427.3,2426.9,0.2056]
[1750851624584,0.2056,2427.0,2426.6,0.2056]
[1750851626401,0.2056,2427.0,2426.7,0.803]
[1750851628402,6.851,2427.5,2426.7,0.803]
[1750851628605,0.94913,2427.4,2426.7,0.803]
[1750851633026,0.787,2427.3,2426.5,0.7938]
[1750851634594,8.67,2427.2,2426.5,0.7938]
[1750851634794,0.787,2427.3,2426.5,0.7938]
[1750851635008,6.849,2427.2,2426.7,0.7768]
[1750851635207,0.8226,2427.5,2426.7,0.7768]
[1750851635423,7.6716,2427.5,2426.7,0.7768]
[1750851636623,0.8226,2427.5,2426.7,0.7768]
[1750851636823,6.848,2427.4,2426.7,0.7768]
[1750851637025,7.79716,2427.4,2426.7,0.7768]
[1750851638296,0.2056,2427.1,2426.7,0.9824]
[1750851641934,7.0526,2427.3,2426.9,0.2056]
[1750851642234,7.0526,2427.3,2427.0,0.7509]
[1750851643921,0.2056,2427.3,2427.0,0.7509]
[1750851647937,0.91066,2427.3,2427.0,0.7509]
[1750851649009,0.91066,2427.3,2426.9,0.2056]
[1750851651036,0.91066,2427.3,2426.1,0.44278369]
[1750851651037,1.48596,2427.3,2426.6,0.7519]
[1750851651239,0.2056,2427.1,2426.7,0.2056]
[1750851656118,0.2056,2427.1,2426.9,0.8]
[1750851673564,1.0203,2427.1,2426.9,0.8]
[1750851673736,2.6287,2427.1,2426.9,0.8]
[1750851674077,0.8215,2426.8,2426.2,0.9684]
[1750851674378,7.0396,2426.7,2426.2,0.9684]
[1750851675530,0.7933,2426.6,2426.2,0.2056]
[1750851676951,7.0396,2426.7,2426.2,0.2056]
[1750851677637,0.2056,2426.7,2426.2,0.2056]
[1750851677843,7.0376,2426.7,2426.2,0.2056]
[1750851678973,0.2056,2426.7,2426.2,0.2056]
[1750851679180,0.2056,2426.7,2426.3,0.7711]
[1750851679692,6.832,2426.8,2426.3,0.7711]
[1750851679836,7.0376,2426.8,2426.4,0.2056]
[1750851685079,0.2056,2426.8,2426.4,0.2056]
[1750851690185,0.7913,2426.7,2425.9,0.7613]
[1750851690385,0.2056,2426.5,2426.1,0.2056]
[1750851692094,0.2056,2426.4,2426.0,0.2056]
[1750851692296,0.9594,2426.4,2426.0,0.2056]
[1750851696602,0.2056,2426.4,2426.1,0.7643]
[1750851697187,0.2056,2426.4,2426.1,1.44253633]
[1750851699306,0.2056,2426.4,2426.1,0.7643]
[1750851702415,0.2056,2426.4,2426.0,0.2056]
[1750851711224,0.8162,2426.3,2426.0,0.2056]
[1750851716526,0.2056,2426.2,2425.8,0.2056]
[1750851718231,0.2056,2426.1,2425.6,10.2056]
[1750851718925,0.8162,2426.3,2425.6,10.0]
[1750851719127,0.8162,2426.3,2424.9,9.884]
[1750851719128,10.0,2426.0,2424.8,0.7654]
[1750851719328,10.0,2425.8,2424.8,0.7654]
[1750851719530,0.8035,2425.9,2425.1,5.81246333]
[1750851719706,6.41905643,2425.7,2425.3,0.7915]
[1750851720419,6.816,2425.8,2425.3,0.7915]
[1750851721838,6.816,2425.8,2425.1,0.7713]
[1750851722044,0.7648,2425.7,2425.1,0.7713]
[1750851722553,0.7648,2425.7,2424.8,1.8]
[1750851722554,0.7648,2425.7,2424.9,0.8328]
[1750851722713,0.7648,2425.7,2424.9,1.70804124]
[1750851728455,6.815,2425.6,2424.9,1.70804124]
[1750851728616,6.815,2425.5,2424.9,1.70804124]
[1750851728822,6.815,2425.5,2424.9,0.8328]
[1750851729146,6.815,2425.5,2425.1,0.2056]
[1750851729612,6.815,2425.5,2425.3,0.2056]
[1750851733024,6.815,2425.5,2425.1,0.2056]
[1750851734458,10.8293,2425.4,2425.1,0.2056]
[1750851734629,0.2056,2425.1,2424.5,0.7742]
[1750851734834,7.0186,2425.1,2424.7,0.2056]
[1750851738152,0.2056,2425.1,2424.7,0.2056]
[1750851738354,7.6183,2425.5,2424.8,0.7824]
[1750851738544,7.6173,2425.5,2424.8,0.7824]
[1750851742654,7.6173,2425.5,2424.9,0.8051]
[1750851742655,6.812,2425.5,2424.9,0.8051]
[1750851742840,6.812,2425.5,2425.0,0.66175633]
[1750851744291,0.7651,2425.4,2425.0,0.66175633]
[1750851744577,6.812,2425.5,2424.8,1.794]
[1750851744795,0.7651,2425.6,2424.8,1.794]
[1750851744950,6.811,2425.5,2424.8,1.794]
[1750851745432,0.7983,2425.4,2424.8,1.794]
[1750851748353,0.2056,2425.2,2424.8,1.794]
[1750851748556,0.2056,2425.2,2424.8,2.07545]
[1750851748958,0.2056,2425.2,2424.8,0.28145]
[1750851758406,0.2056,2425.2,2424.7,1.0205]
[1750851763422,0.2056,2425.2,2424.4,0.4344606]
[1750851763423,0.8149,2425.1,2424.5,2.5939]
[1750851763651,0.2056,2425.0,2424.6,0.2056]
[1750851765458,6.805,2425.3,2424.7,0.7511]
[1750851765637,0.2056,2425.2,2424.7,0.9567]
[1750851765947,0.2056,2425.5,2425.2,0.7511]
[1750851767010,0.2056,2425.8,2425.3,0.2056]
[1750851767234,11.90656,2425.8,2425.3,0.2056]
[1750851767728,1.90656,2425.8,2425.3,0.2056]
[1750851768146,6.804,2426.2,2425.4,0.7833]
[1750851768358,0.2056,2426.0,2425.5,0.2056]
[1750851770804,10.7664,2426.4,2425.6,0.8204]
[1750851771007,6.803,2426.2,2425.8,0.2056]
[1750851771345,7.0086,2426.3,2425.8,0.2056]
[1750851771513,0.2056,2426.3,2425.8,0.2056]
[1750851771832,6.802,2426.4,2426.0,0.9849]
[1750851781542,0.8082,2426.2,2425.7,0.7811]
[1750851781742,0.2056,2426.2,2425.7,0.7811]
[1750851781948,0.2056,2426.2,2425.7,0.9867]
[1750851787435,0.2056,2426.2,2425.7,0.9867]
[1750851789223,6.796,2426.3,2425.8,0.7844]
[1750851789462,6.796,2426.3,2425.9,0.2056]
[1750851789750,6.796,2426.3,2426.0,0.7844]
[1750851790751,0.2056,2426.4,2426.0,0.7844]
[1750851790957,6.795,2426.3,2426.0,0.7844]
[1750851792058,0.2056,2426.4,2426.0,0.7844]
[1750851792261,7.0006,2426.4,2426.0,0.7844]
[1750851792625,6.9996,2426.4,2426.0,0.7844]
[1750851794060,0.2056,2426.4,2426.0,0.7844]
[1750851794873,0.2056,2426.7,2426.3,0.2056]
[1750851795074,0.2056,2426.7,2426.4,0.7774]
[1750851796177,16.9986,2426.9,2426.5,0.2056]
[1750851796672,10.2056,2426.9,2426.5,0.2056]
[1750851796877,6.793,2426.8,2426.5,0.2056]
[1750851797585,0.2056,2426.9,2426.5,0.2056]
[1750851797873,0.2056,2426.9,2426.6,0.7972]
[1750851798164,9.888,2427.4,2426.9,0.7744]
[1750851798391,0.2056,2427.4,2427.0,0.2056]
[1750851798566,6.792,2427.3,2427.0,0.2056]
[1750851798729,0.2056,2427.4,2427.0,0.2056]
[1750851798930,6.9976,2427.4,2427.0,0.2056]
[1750851799340,6.9966,2427.4,2427.0,0.2056]
[1750851800772,2.5504,2428.3,2427.1,0.7587]
[1750851800976,6.791,2427.9,2427.3,0.8131]
[1750851801180,0.7792,2427.8,2427.3,0.8131]
[1750851802082,1.08184,2428.2,2427.3,0.8131]
[1750851802246,6.79,2428.1,2427.3,0.8131]
[1750851804866,0.8268,2428.2,2427.3,0.8131]
[1750851805073,6.788,2428.0,2427.3,0.8131]
[1750851810680,6.788,2428.0,2427.7,0.2056]
[1750851810988,6.788,2428.0,2427.7,0.9742]
[1750851812882,6.788,2428.0,2427.5,0.7943]
[1750851813086,0.2056,2427.9,2427.5,0.9999]
[1750851814070,0.77998,2427.9,2427.2,0.7943]
[1750851814258,0.2056,2427.7,2427.2,0.9999]
[1750851814592,1.0118,2427.7,2427.2,0.9999]
[1750851815365,0.2056,2427.4,2427.0,1.0261]
[1750851817791,2.5543,2427.9,2427.1,0.7988]
[1750851817995,0.2056,2427.6,2427.2,0.2056]
[1750851818195,6.783,2427.9,2427.3,0.7988]
[1750851818378,6.9886,2427.9,2427.5,0.2056]
[1750851819978,6.9886,2427.9,2427.6,0.7734]
[1750851822410,6.9886,2427.9,2427.5,0.2056]
[1750851822411,6.783,2427.9,2427.5,0.2056]
[1750851822600,0.2056,2427.8,2427.4,1.0217]
[1750851822796,0.7557,2427.8,2427.2,0.8161]
[1750851822989,0.2056,2427.5,2427.2,0.8161]
[1750851826786,0.2056,2427.5,2427.1,0.2056]
[1750851828808,0.2056,2427.2,2426.8,0.2056]
[1750851828970,0.2056,2427.1,2426.6,0.9666]
[1750851829166,6.78,2427.2,2426.6,0.761]
[1750851829399,0.2056,2426.9,2426.6,0.761]
[1750851829604,0.2056,2426.9,2426.6,1.03576]
[1750851831279,6.9856,2427.2,2426.9,0.8177]
[1750851831479,7.5321,2427.4,2426.9,0.8177]
[1750851831680,7.7377,2427.4,2426.9,1.0233]
[1750851832086,0.2056,2427.4,2426.9,1.0233]
[1750851834926,6.779,2427.5,2426.9,0.8177]
[1750851835123,6.9846,2427.5,2427.1,0.2056]
[1750851835681,0.2056,2427.5,2427.1,0.2056]
[1750851836180,16.779,2427.6,2427.2,0.762]
[1750851836422,10.0,2427.6,2427.3,0.2056]
[1750851836576,6.779,2427.6,2427.3,0.2056]
[1750851838210,8.55272,2427.6,2427.0,0.8183]
[1750851838412,0.2056,2427.5,2427.0,1.0239]
[1750851840717,0.9827,2427.5,2427.0,1.0239]
[1750851841016,0.9827,2427.5,2427.0,0.2056]
[1750851841318,0.7771,2427.5,2426.8,0.7837]
[1750851841525,0.2056,2427.3,2426.8,0.9893]
[1750851844005,0.2056,2427.5,2427.1,0.8167]
[1750851844204,6.778,2427.6,2427.1,0.8167]
[1750851844514,6.778,2427.6,2427.2,0.2056]
[1750851848028,0.2056,2427.7,2427.2,0.2056]
[1750851848228,0.8256,2428.2,2427.4,0.7872]
[1750851848531,6.9826,2428.1,2427.5,0.2056]
[1750851849798,0.7611,2428.0,2427.4,0.7872]
[1750851849997,0.2056,2427.8,2427.4,0.9928]
[1750851853610,0.2056,2427.8,2427.4,0.2056]
[1750851853807,0.2056,2427.7,2427.2,0.9671]
[1750851854807,6.775,2427.9,2427.5,0.7615]
[1750851854808,0.2056,2427.8,2427.5,0.7615]
[1750851856317,0.7611,2428.0,2427.5,0.7615]
[1750851856318,7.7417,2428.0,2427.5,0.9671]
[1750851856634,6.9806,2428.0,2427.5,0.9671]
[1750851860653,0.2056,2428.0,2427.5,0.9671]
[1750851860947,8.7566,2428.2,2427.7,0.2056]
[1750851861146,6.774,2428.1,2427.7,0.2056]
[1750851862635,0.2056,2428.2,2427.7,0.2056]
[1750851862830,0.2056,2428.2,2427.8,0.7778]
[1750851864346,0.8313,2428.9,2427.8,0.7778]
[1750851864554,7.6043,2428.9,2427.9,0.7883]
[1750851864726,6.773,2428.8,2428.1,0.7883]
[1750851865317,0.8313,2428.9,2428.1,0.7883]
[1750851865318,7.6043,2428.9,2428.1,0.7883]
[1750851869857,10.8319,2428.8,2427.6,0.8192]
[1750851870077,0.8319,2428.6,2427.6,0.8192]
[1750851870229,6.771,2428.5,2427.6,0.8192]
[1750851870427,6.771,2428.5,2427.6,0.8109]
[1750851870927,6.771,2428.6,2427.6,0.8109]
[1750851871357,6.771,2428.6,2427.8,0.7801]
[1750851871531,6.771,2428.6,2427.9,0.7801]
[1750851873144,7.5435,2428.6,2427.9,0.7801]
[1750851873450,0.75435,2428.5,2427.9,0.7801]
[1750851874050,0.8143,2428.4,2427.3,0.7617]
[1750851874237,0.8143,2428.4,2427.7,0.7617]
[1750851874443,0.2056,2428.1,2427.7,0.9673]
[1750851882480,0.7678,2428.0,2427.7,0.2056]
[1750851882664,0.7678,2428.0,2427.5,10.0]
[1750851882964,0.9734,2428.0,2427.5,10.2056]
[1750851887519,0.2056,2428.0,2427.5,10.2056]
[1750851896586,0.2056,2427.6,2427.2,0.2056]
[1750851896898,0.8128,2427.5,2427.2,0.2056]
[1750851905398,1.0184,2427.5,2427.0,0.2056]
[1750851909415,1.0184,2427.5,2427.0,0.53188329]
[1750851910714,0.2056,2427.5,2427.0,0.53188329]
[1750851912713,0.2056,2427.5,2427.0,0.2056]
[1750851915119,7.5957,2427.7,2426.9,2.5953]
[1750851915314,0.2056,2427.6,2427.2,0.2056]
[1750851916420,0.8174,2427.9,2427.3,0.8179]
[1750851916613,0.8174,2427.9,2427.4,0.2056]
[1750851916614,0.2056,2427.8,2427.4,0.2056]
[1750851916810,0.9845,2427.8,2427.4,0.2056]
[1750851916992,0.2056,2427.8,2427.4,0.2056]
[1750851918722,6.766,2428.3,2427.4,0.82]
[1750851918892,0.2056,2428.2,2427.7,0.2056]
[1750851921317,0.2056,2428.2,2427.7,0.9913]
[1750851924226,0.764,2428.1,2427.7,0.2056]
[1750851925428,0.764,2428.1,2427.3,0.8007]
[1750851925596,0.764,2428.1,2427.2,1.767]
[1750851925597,0.2056,2427.8,2427.4,0.2056]
[1750851925928,1.0236,2427.8,2427.4,0.2056]
[1750851934618,7.5643,2428.0,2427.5,0.8186]
[1750851934934,7.5643,2428.0,2427.7,0.2056]
[1750851935112,0.8023,2428.0,2427.7,0.2056]
[1750851943440,0.2056,2428.1,2427.7,0.2056]
[1750851945754,0.8061,2428.2,2427.6,0.7583]
[1750851945922,0.8061,2428.2,2427.8,0.2056]
[1750851946756,0.8028,2428.6,2427.9,0.8118]
[1750851946955,0.8028,2428.6,2428.1,0.2056]
[1750851950645,7.5618,2428.6,2428.1,0.2056]
[1750851950866,0.7728,2428.4,2427.6,1.767]
[1750851951029,0.7728,2428.4,2428.0,0.2056]
[1750851951660,6.758,2428.6,2428.3,0.2056]
[1750851952136,6.9636,2428.6,2428.2,0.2056]
[1750851952335,7.91394,2428.6,2428.2,0.2056]
[1750851953553,6.9636,2428.6,2428.2,0.2056]
[1750851954867,0.7784,2428.5,2428.2,0.2056]
[1750851957662,0.7784,2428.5,2427.6,0.7651]
[1750851957959,0.7549,2428.2,2427.8,0.2056]
[1750851961283,1.0227,2428.3,2427.8,0.2056]
[1750851962979,0.775,2428.2,2427.8,0.2056]
[1750851963182,0.2056,2428.3,2427.2,0.8118]
[1750851963183,0.2056,2427.9,2427.2,0.8118]
[1750851963487,0.775,2427.8,2427.5,0.2056]
[1750851964381,0.775,2427.7,2426.7,0.8118]
[1750851964564,0.2056,2427.6,2427.2,0.2056]
[1750851964765,0.765,2427.5,2427.2,0.2056]
[1750851970362,0.7663,2428.8,2427.6,0.55]
[1750851970560,0.7663,2428.8,2427.7,1.51450978]
[1750851970755,0.7663,2428.6,2427.8,10.0]
[1750851970994,0.7663,2428.4,2427.8,10.0]
[1750851971689,1.765,2429.1,2427.8,10.0]
[1750851971690,0.7898,2428.9,2427.8,10.0]
[1750851972294,7.6598,2428.9,2427.8,10.0]
[1750851972666,0.7898,2428.9,2427.8,10.0]
[1750851972870,6.87,2428.8,2427.9,0.8107]
[1750851974381,0.7623,2428.7,2427.9,0.8107]
[1750851977071,5.81246333,2428.7,2427.7,0.7726]
[1750851977383,0.7525,2428.6,2427.6,11.764]
[1750851978679,7.6155,2428.6,2427.6,11.764]
[1750851978886,7.6155,2428.6,2427.6,12.47874894]
[1750851979085,1.764,2428.7,2427.7,10.0]
[1750851980411,0.2056,2428.5,2428.0,0.2056]
[1750851980614,7.57646333,2428.7,2427.6,1.764]
[1750851980816,0.2056,2428.3,2427.9,0.2056]
[1750851982108,0.752,2428.2,2427.9,0.2056]
[1750851984906,0.752,2428.2,2427.5,0.773]
[1750851985122,0.2056,2428.1,2427.7,0.2056]
[1750851992999,0.752,2428.2,2427.3,0.8144]